[Event "SS Manhem Chess Week 2019 GM and IM tournaments"]
[Site "Molnlycke kulturhus, Biblioteksgatan 2, Molnlycke, Sweden"]
[Date "2019.08.14"]
[Round "7.7"]
[White "Pham, Bich Ngoc"]
[Black "Fries-Nielsen, Jens Ove"]
[Result "1/2-1/2"]
[TimeControl "90 minutes for 40 moves + 30 minutes for the rest of the game + 30 seconds per move from move one."]
[WhiteTitle "WIM"]
[BlackTitle "IM"]
[WhiteFideId "12401285"]
[BlackFideId "1400142"]
[WhiteElo "2176"]
[BlackElo "2351"]

1. f4 {[%clk 01:19:08]} {[%emt 00:11:51]} e6 {[%clk 01:30:21]} {[%emt
00:00:40]} 2. Nf3 {[%clk 01:19:27]} {[%emt 00:00:11]} f5 {[%clk 01:29:57]}
{[%emt 00:00:54]} 3. g3 {[%clk 01:19:09]} {[%emt 00:00:48]} Nf6 {[%clk
01:30:21]} {[%emt 00:00:06]} 4. Bg2 {[%clk 01:19:30]} {[%emt 00:00:09]} g6
{[%clk 01:28:40]} {[%emt 00:02:11]} 5. d3 {[%clk 01:18:07]} {[%emt 00:01:53]}
Bg7 {[%clk 01:29:05]} {[%emt 00:00:05]} 6. O-O {[%clk 01:17:19]} {[%emt
00:01:18]} O-O {[%clk 01:29:28]} {[%emt 00:00:07]} 7. Nc3 {[%clk 01:15:42]}
{[%emt 00:02:07]} d5 {[%clk 01:24:47]} {[%emt 00:05:11]} 8. e4 {[%clk
01:08:34]} {[%emt 00:07:38]} d4 {[%clk 01:14:08]} {[%emt 00:11:09]} 9. Nb5
{[%clk 01:08:26]} {[%emt 00:00:37]} Nc6 {[%clk 01:13:49]} {[%emt 00:00:49]} 10.
e5 {[%clk 01:07:44]} {[%emt 00:01:11]} Nd7 {[%clk 01:12:03]} {[%emt 00:02:16]}
11. Qe2 {[%clk 01:00:01]} {[%emt 00:08:14]} a6 {[%clk 00:55:08]} {[%emt
00:17:25]} 12. Nbxd4 {[%clk 01:00:08]} {[%emt 00:00:22]} Nxd4 {[%clk 00:55:17]}
{[%emt 00:00:21]} 13. Nxd4 {[%clk 01:00:30]} {[%emt 00:00:08]} Nxe5 {[%clk
00:55:20]} {[%emt 00:00:28]} 14. Nxe6 {[%clk 00:56:31]} {[%emt 00:04:28]} Bxe6
{[%clk 00:55:03]} {[%emt 00:00:48]} 15. fxe5 {[%clk 00:56:55]} {[%emt
00:00:06]} Qd4+ {[%clk 00:54:49]} {[%emt 00:00:44]} 16. Kh1 {[%clk 00:54:09]}
{[%emt 00:03:16]} Bd5 {[%clk 00:53:03]} {[%emt 00:02:16]} 17. Re1 {[%clk
00:51:00]} {[%emt 00:03:38]} Rfe8 {[%clk 00:48:14]} {[%emt 00:05:20]} 18. Bf4
{[%clk 00:26:34]} {[%emt 00:24:55]} Bxg2+ {[%clk 00:48:35]} {[%emt 00:00:09]}
19. Qxg2 {[%clk 00:24:08]} {[%emt 00:02:56]} Qxb2 {[%clk 00:46:25]} {[%emt
00:02:41]} 20. Rab1 {[%clk 00:20:18]} {[%emt 00:04:20]} Qxa2 {[%clk 00:46:08]}
{[%emt 00:00:46]} 21. Qxb7 {[%clk 00:17:50]} {[%emt 00:02:57]} Qxc2 {[%clk
00:39:39]} {[%emt 00:06:59]} 22. Rbc1 {[%clk 00:08:48]} {[%emt 00:09:32]} Qa2
{[%clk 00:35:17]} {[%emt 00:04:53]} 23. Rxc7 {[%clk 00:08:58]} {[%emt
00:00:20]} Bf8 {[%clk 00:35:26]} {[%emt 00:00:21]} 24. Qc6 {[%clk 00:03:47]}
{[%emt 00:05:41]} Rad8 {[%clk 00:34:13]} {[%emt 00:01:42]} 25. e6 {[%clk
00:02:22]} {[%emt 00:01:54]} Qd5+ {[%clk 00:27:23]} {[%emt 00:07:21]} 26. Qxd5
{[%clk 00:02:35]} {[%emt 00:00:18]} Rxd5 {[%clk 00:27:51]} {[%emt 00:00:01]} 27.
Re3 {[%clk 00:02:58]} {[%emt 00:00:07]} a5 {[%clk 00:26:26]} {[%emt 00:01:56]}
28. Rd7 {[%clk 00:01:40]} {[%emt 00:01:47]} Rxd7 {[%clk 00:21:51]} {[%emt
00:05:05]} 29. exd7 {[%clk 00:02:06]} {[%emt 00:00:04]} Rd8 {[%clk 00:22:18]}
{[%emt 00:00:03]} 30. Re8 {[%clk 00:02:13]} {[%emt 00:00:22]} Rxd7 {[%clk
00:22:45]} {[%emt 00:00:04]} 31. Bh6 {[%clk 00:02:37]} {[%emt 00:00:05]} Rf7
{[%clk 00:23:12]} {[%emt 00:00:04]} 32. Ra8 {[%clk 00:02:20]} {[%emt 00:00:47]}
a4 {[%clk 00:23:20]} {[%emt 00:00:22]} 33. Kg2 {[%clk 00:02:22]} {[%emt
00:00:28]} a3 {[%clk 00:23:37]} {[%emt 00:00:14]} 34. Kf3 {[%clk 00:02:28]}
{[%emt 00:00:23]} a2 {[%clk 00:23:52]} {[%emt 00:00:15]} 35. Bxf8 {[%clk
00:02:43]} {[%emt 00:00:15]} Rxf8 {[%clk 00:24:03]} {[%emt 00:00:18]} 1/2-1/2

[Event "SS Manhem Chess Week 2019 GM and IM tournaments"]
[Site "Molnlycke kulturhus, Biblioteksgatan 2, Molnlycke, Sweden"]
[Date "2019.08.14"]
[Round "7.8"]
[White "Rydstrom, Tom"]
[Black "Kucuksari, Kaan"]
[Result "1-0"]
[TimeControl "90 minutes for 40 moves + 30 minutes for the rest of the game + 30 seconds per move from move one."]
[WhiteTitle "FM"]
[BlackTitle "FM"]
[WhiteFideId "1714830"]
[BlackFideId "6380166"]
[WhiteElo "2314"]
[BlackElo "2286"]

1. e4 {[%clk 01:30:58]} {[%emt 00:00:01]} c6 {[%clk 01:30:08]} {[%emt
00:00:52]} 2. d4 {[%clk 01:28:58]} {[%emt 00:02:30]} d5 {[%clk 01:30:14]}
{[%emt 00:00:24]} 3. e5 {[%clk 01:28:29]} {[%emt 00:01:00]} c5 {[%clk
01:30:35]} {[%emt 00:00:08]} 4. dxc5 {[%clk 01:28:32]} {[%emt 00:00:27]} Nc6
{[%clk 01:30:15]} {[%emt 00:00:50]} 5. Nf3 {[%clk 01:28:31]} {[%emt 00:00:30]}
e6 {[%clk 01:30:17]} {[%emt 00:00:28]} 6. Bd3 {[%clk 01:27:25]} {[%emt
00:01:36]} Bxc5 {[%clk 01:30:05]} {[%emt 00:00:42]} 7. O-O {[%clk 01:27:41]}
{[%emt 00:00:14]} Nge7 {[%clk 01:30:10]} {[%emt 00:00:25]} 8. a3 {[%clk
01:27:15]} {[%emt 00:00:58]} Ng6 {[%clk 01:19:57]} {[%emt 00:10:42]} 9. b4
{[%clk 01:25:29]} {[%emt 00:02:15]} Bb6 {[%clk 01:19:05]} {[%emt 00:01:22]} 10.
Re1 {[%clk 01:25:40]} {[%emt 00:00:19]} Bd7 {[%clk 01:17:33]} {[%emt 00:02:02]}
11. Bb2 {[%clk 01:24:02]} {[%emt 00:02:08]} O-O {[%clk 01:16:39]} {[%emt
00:01:24]} 12. Nbd2 {[%clk 01:23:47]} {[%emt 00:00:45]} Rc8 {[%clk 01:12:42]}
{[%emt 00:04:27]} 13. g3 {[%clk 01:17:29]} {[%emt 00:06:48]} f6 {[%clk
01:01:41]} {[%emt 00:11:31]} 14. exf6 {[%clk 01:16:12]} {[%emt 00:01:47]} gxf6
{[%clk 00:58:52]} {[%emt 00:03:19]} 15. c4 {[%clk 01:14:14]} {[%emt 00:02:28]}
Rf7 {[%clk 00:45:18]} {[%emt 00:14:04]} 16. Qb3 {[%clk 01:07:17]} {[%emt
00:07:27]} Nce7 {[%clk 00:40:09]} {[%emt 00:05:39]} 17. cxd5 {[%clk 00:50:58]}
{[%emt 00:16:49]} Nxd5 {[%clk 00:40:37]} {[%emt 00:00:02]} 18. Ne4 {[%clk
00:50:47]} {[%emt 00:00:41]} a6 {[%clk 00:37:37]} {[%emt 00:03:30]} 19. Rad1
{[%clk 00:39:51]} {[%emt 00:11:26]} Qf8 {[%clk 00:36:31]} {[%emt 00:01:36]} 20.
Bc4 {[%clk 00:36:10]} {[%emt 00:04:11]} Ba4 {[%clk 00:33:31]} {[%emt 00:03:29]}
21. Qxa4 {[%clk 00:36:39]} {[%emt 00:00:02]} Rxc4 {[%clk 00:33:56]} {[%emt
00:00:06]} 22. Qb3 {[%clk 00:29:34]} {[%emt 00:07:34]} Rc6 {[%clk 00:33:42]}
{[%emt 00:00:44]} 23. Nd4 {[%clk 00:29:07]} {[%emt 00:00:57]} Bxd4 {[%clk
00:33:49]} {[%emt 00:00:22]} 24. Bxd4 {[%clk 00:29:18]} {[%emt 00:00:18]} b6
{[%clk 00:30:23]} {[%emt 00:03:57]} 25. a4 {[%clk 00:28:12]} {[%emt 00:01:36]}
Rfc7 {[%clk 00:27:19]} {[%emt 00:03:34]} 26. b5 {[%clk 00:28:04]} {[%emt
00:00:38]} axb5 {[%clk 00:27:41]} {[%emt 00:00:07]} 27. axb5 {[%clk 00:28:32]}
{[%emt 00:00:03]} Rc4 {[%clk 00:27:36]} {[%emt 00:00:35]} 28. Ba1 {[%clk
00:25:55]} {[%emt 00:03:06]} Rb4 {[%clk 00:10:01]} {[%emt 00:18:06]} 29. Qf3
{[%clk 00:24:18]} {[%emt 00:02:07]} Nge7 {[%clk 00:07:14]} {[%emt 00:03:16]} 30.
Qg4+ {[%clk 00:23:29]} {[%emt 00:01:18]} Qg7 {[%clk 00:07:13]} {[%emt
00:00:32]} 31. Nxf6+ {[%clk 00:22:51]} {[%emt 00:01:08]} Nxf6 {[%clk 00:07:00]}
{[%emt 00:00:43]} 32. Qxb4 {[%clk 00:22:50]} {[%emt 00:00:30]} Ned5 {[%clk
00:07:29]} {[%emt 00:00:01]} 33. Qd6 {[%clk 00:23:07]} {[%emt 00:00:13]} Qd7
{[%clk 00:07:48]} {[%emt 00:00:11]} 34. Qxd7 {[%clk 00:22:52]} {[%emt
00:00:46]} Rxd7 {[%clk 00:08:16]} {[%emt 00:00:02]} 35. Bxf6 {[%clk 00:23:13]}
{[%emt 00:00:09]} Nxf6 {[%clk 00:08:44]} {[%emt 00:00:02]} 36. Rxd7 {[%clk
00:23:38]} {[%emt 00:00:05]} 1-0

[Event "SS Manhem Chess Week 2019 GM and IM tournaments"]
[Site "Molnlycke kulturhus, Biblioteksgatan 2, Molnlycke, Sweden"]
[Date "2019.08.14"]
[Round "7.9"]
[White "Hill, Alistair"]
[Black "Malmstig, Erik"]
[Result "1/2-1/2"]
[TimeControl "90 minutes for 40 moves + 30 minutes for the rest of the game + 30 seconds per move from move one."]
[BlackTitle "FM"]
[WhiteFideId "432407"]
[BlackFideId "1702866"]
[WhiteElo "2224"]
[BlackElo "2335"]

1. c4 {[%clk 01:30:56]} {[%emt 00:00:03]} e5 {[%clk 01:30:48]} {[%emt
00:00:13]} 2. g3 {[%clk 01:31:16]} {[%emt 00:00:10]} d6 {[%clk 01:30:16]}
{[%emt 00:01:02]} 3. Nc3 {[%clk 01:31:40]} {[%emt 00:00:06]} c6 {[%clk
01:30:26]} {[%emt 00:00:20]} 4. Bg2 {[%clk 01:31:30]} {[%emt 00:00:39]} Be7
{[%clk 01:30:44]} {[%emt 00:00:13]} 5. Nf3 {[%clk 01:31:33]} {[%emt 00:00:26]}
f5 {[%clk 01:31:02]} {[%emt 00:00:13]} 6. O-O {[%clk 01:29:28]} {[%emt
00:02:35]} Nh6 {[%clk 01:30:46]} {[%emt 00:00:46]} 7. d4 {[%clk 01:20:31]}
{[%emt 00:09:27]} e4 {[%clk 01:27:35]} {[%emt 00:03:41]} 8. Ne1 {[%clk
01:20:51]} {[%emt 00:00:10]} Na6 {[%clk 01:24:16]} {[%emt 00:03:49]} 9. Nc2
{[%clk 01:16:50]} {[%emt 00:04:30]} Ng4 {[%clk 01:21:40]} {[%emt 00:03:07]} 10.
f3 {[%clk 01:00:04]} {[%emt 00:17:16]} exf3 {[%clk 01:21:33]} {[%emt 00:00:38]}
11. exf3 {[%clk 01:00:31]} {[%emt 00:00:03]} Nf6 {[%clk 01:21:44]} {[%emt
00:00:19]} 12. Re1 {[%clk 01:00:31]} {[%emt 00:00:30]} O-O {[%clk 01:21:45]}
{[%emt 00:00:29]} 13. Bg5 {[%clk 00:59:56]} {[%emt 00:01:05]} Bd7 {[%clk
01:19:47]} {[%emt 00:02:28]} 14. Qd3 {[%clk 00:54:25]} {[%emt 00:06:01]} h6
{[%clk 01:16:13]} {[%emt 00:04:03]} 15. Bd2 {[%clk 00:53:07]} {[%emt 00:01:49]}
Rf7 {[%clk 01:11:19]} {[%emt 00:05:24]} 16. Re2 {[%clk 00:52:11]} {[%emt
00:01:26]} Bf8 {[%clk 01:05:20]} {[%emt 00:06:30]} 17. Rae1 {[%clk 00:48:06]}
{[%emt 00:04:35]} Qb6 {[%clk 00:58:17]} {[%emt 00:07:33]} 18. b3 {[%clk
00:43:05]} {[%emt 00:05:31]} Nh5 {[%clk 00:53:26]} {[%emt 00:05:20]} 19. Bh3
{[%clk 00:37:28]} {[%emt 00:06:08]} Qd8 {[%clk 00:51:18]} {[%emt 00:02:38]} 20.
f4 {[%clk 00:31:02]} {[%emt 00:06:57]} g6 {[%clk 00:47:44]} {[%emt 00:04:03]}
21. b4 {[%clk 00:27:43]} {[%emt 00:03:50]} Nf6 {[%clk 00:43:20]} {[%emt
00:04:54]} 22. Bg2 {[%clk 00:28:07]} {[%emt 00:00:06]} Rc8 {[%clk 00:31:30]}
{[%emt 00:12:19]} 23. a3 {[%clk 00:26:58]} {[%emt 00:01:40]} Nc7 {[%clk
00:29:14]} {[%emt 00:02:46]} 1/2-1/2

[Event "SS Manhem Chess Week 2019 GM and IM tournaments"]
[Site "Molnlycke kulturhus, Biblioteksgatan 2, Molnlycke, Sweden"]
[Date "2019.08.14"]
[Round "7.10"]
[White "Renman, Nils-Gustaf"]
[Black "Ornstein, Axel"]
[Result "1-0"]
[TimeControl "90 minutes for 40 moves + 30 minutes for the rest of the game + 30 seconds per move from move one."]
[WhiteTitle "IM"]
[BlackTitle "IM"]
[WhiteFideId "1700367"]
[BlackFideId "1700111"]
[WhiteElo "2346"]
[BlackElo "2311"]

1. d4 {[%clk 01:30:58]} {[%emt 00:00:01]} Nf6 {[%clk 01:30:55]} {[%emt
00:00:06]} 2. Nf3 {[%clk 01:31:19]} {[%emt 00:00:09]} e6 {[%clk 01:29:00]}
{[%emt 00:02:24]} 3. c4 {[%clk 01:31:36]} {[%emt 00:00:14]} d5 {[%clk
01:25:29]} {[%emt 00:04:01]} 4. Nc3 {[%clk 01:31:37]} {[%emt 00:00:30]} c5
{[%clk 01:25:33]} {[%emt 00:00:26]} 5. cxd5 {[%clk 01:31:37]} {[%emt 00:00:30]}
Nxd5 {[%clk 01:25:45]} {[%emt 00:00:17]} 6. e4 {[%clk 01:31:49]} {[%emt
00:00:18]} Nxc3 {[%clk 01:26:09]} {[%emt 00:00:06]} 7. bxc3 {[%clk 01:32:13]}
{[%emt 00:00:06]} cxd4 {[%clk 01:26:31]} {[%emt 00:00:08]} 8. cxd4 {[%clk
01:32:35]} {[%emt 00:00:08]} Bb4+ {[%clk 01:26:53]} {[%emt 00:00:07]} 9. Bd2
{[%clk 01:33:00]} {[%emt 00:00:04]} Bxd2+ {[%clk 01:26:56]} {[%emt 00:00:28]}
10. Qxd2 {[%clk 01:33:23]} {[%emt 00:00:08]} O-O {[%clk 01:27:17]} {[%emt
00:00:08]} 11. Bc4 {[%clk 01:33:40]} {[%emt 00:00:13]} b6 {[%clk 01:26:14]}
{[%emt 00:01:34]} 12. O-O {[%clk 01:33:37]} {[%emt 00:00:33]} Bb7 {[%clk
01:26:38]} {[%emt 00:00:06]} 13. Rfe1 {[%clk 01:29:54]} {[%emt 00:04:12]} Nd7
{[%clk 01:26:52]} {[%emt 00:00:16]} 14. Rad1 {[%clk 01:25:10]} {[%emt
00:05:14]} Rc8 {[%clk 01:26:39]} {[%emt 00:00:43]} 15. Bb3 {[%clk 01:25:31]}
{[%emt 00:00:09]} Qe7 {[%clk 01:24:29]} {[%emt 00:02:40]} 16. d5 {[%clk
01:13:29]} {[%emt 00:12:32]} exd5 {[%clk 01:24:50]} {[%emt 00:00:08]} 17. exd5
{[%clk 01:13:51]} {[%emt 00:00:08]} Qd6 {[%clk 01:25:19]} 18. Nd4 {[%clk
01:13:04]} {[%emt 00:01:18]} Qf6 {[%clk 01:21:28]} {[%emt 00:04:21]} 19. Ne6
{[%clk 00:54:48]} {[%emt 00:18:46]} Rfe8 {[%clk 01:20:20]} {[%emt 00:01:38]} 20.
Ba4 {[%clk 00:53:22]} {[%emt 00:01:56]} Re7 {[%clk 01:20:22]} {[%emt 00:00:26]}
21. d6 {[%clk 00:53:14]} {[%emt 00:00:40]} Rxe6 {[%clk 01:20:46]} {[%emt
00:00:06]} 22. Bxd7 {[%clk 00:53:35]} {[%emt 00:00:09]} Rxe1+ {[%clk 01:21:12]}
{[%emt 00:00:05]} 23. Qxe1 {[%clk 00:43:56]} {[%emt 00:10:08]} Rd8 {[%clk
01:21:30]} {[%emt 00:00:11]} 24. Qe7 {[%clk 00:43:37]} {[%emt 00:00:49]} Bd5
{[%clk 01:16:03]} {[%emt 00:05:57]} 25. Ba4 {[%clk 00:33:02]} {[%emt 00:11:05]}
Bxa2 {[%clk 01:14:14]} {[%emt 00:02:19]} 26. Qxa7 {[%clk 00:32:41]} 1-0

[Event "SS Manhem Chess Week 2019 GM and IM tournaments"]
[Site "Molnlycke kulturhus, Biblioteksgatan 2, Molnlycke, Sweden"]
[Date "2019.08.15"]
[Round "8.1"]
[White "Hector, Jonny"]
[Black "Seo, Jung Min"]
[Result "1/2-1/2"]
[TimeControl "90 minutes for 40 moves + 30 minutes for the rest of the game + 30 seconds per move from move one."]
[WhiteTitle "GM"]
[BlackTitle "FM"]
[WhiteFideId "1700090"]
[BlackFideId "1734687"]
[WhiteElo "2493"]
[BlackElo "2409"]

1. e4 {[%clk 01:30:54]} {[%emt 00:00:04]} c5 {[%clk 01:31:00]} 2. Nf3 {[%clk
01:31:12]} {[%emt 00:00:12]} Nc6 {[%clk 01:31:28]} {[%emt 00:00:03]} 3. Nc3
{[%clk 01:31:33]} {[%emt 00:00:09]} e5 {[%clk 01:31:56]} {[%emt 00:00:02]} 4.
Bc4 {[%clk 01:31:41]} {[%emt 00:00:21]} Be7 {[%clk 01:32:22]} {[%emt 00:00:05]}
5. d3 {[%clk 01:31:51]} {[%emt 00:00:19]} Nf6 {[%clk 01:32:42]} {[%emt
00:00:12]} 6. Ng5 {[%clk 01:31:08]} {[%emt 00:01:12]} O-O {[%clk 01:32:55]}
{[%emt 00:00:17]} 7. h4 {[%clk 01:31:25]} {[%emt 00:00:12]} d6 {[%clk
01:31:15]} {[%emt 00:02:11]} 8. Nd5 {[%clk 01:31:22]} {[%emt 00:00:32]} Nxd5
{[%clk 01:28:53]} {[%emt 00:02:53]} 9. Bxd5 {[%clk 01:31:20]} {[%emt 00:00:31]}
g6 {[%clk 01:27:37]} {[%emt 00:01:48]} 10. f4 {[%clk 01:25:19]} {[%emt
00:06:31]} exf4 {[%clk 01:17:21]} {[%emt 00:10:47]} 11. Bxf4 {[%clk 01:19:36]}
{[%emt 00:06:12]} Nd4 {[%clk 01:14:42]} {[%emt 00:03:10]} 12. Qd2 {[%clk
01:13:59]} {[%emt 00:06:07]} Bg4 {[%clk 01:07:38]} {[%emt 00:07:35]} 13. c3
{[%clk 01:07:50]} {[%emt 00:06:38]} Ne6 {[%clk 01:07:22]} {[%emt 00:00:46]} 14.
Bxb7 {[%clk 01:04:53]} {[%emt 00:03:26]} Rb8 {[%clk 01:06:16]} {[%emt
00:01:36]} 15. Bd5 {[%clk 01:03:54]} {[%emt 00:01:28]} Rxb2 {[%clk 01:00:09]}
{[%emt 00:06:39]} 16. Qxb2 {[%clk 01:04:01]} {[%emt 00:00:23]} Nxf4 {[%clk
01:00:38]} {[%emt 00:00:02]} 17. Qd2 {[%clk 00:48:15]} {[%emt 00:16:15]} Bxg5
{[%clk 00:49:16]} {[%emt 00:11:53]} 18. hxg5 {[%clk 00:48:29]} {[%emt
00:00:14]} Nxd5 {[%clk 00:49:45]} {[%emt 00:00:02]} 19. exd5 {[%clk 00:48:22]}
{[%emt 00:00:36]} Re8+ {[%clk 00:50:10]} {[%emt 00:00:05]} 20. Kf1 {[%clk
00:48:33]} {[%emt 00:00:19]} Re5 {[%clk 00:50:09]} {[%emt 00:00:32]} 21. c4
{[%clk 00:39:08]} {[%emt 00:09:55]} Rxg5 {[%clk 00:48:04]} {[%emt 00:02:36]} 22.
Kg1 {[%clk 00:38:54]} {[%emt 00:00:43]} h5 {[%clk 00:46:32]} {[%emt 00:02:02]}
23. Kh2 {[%clk 00:32:05]} {[%emt 00:07:18]} Bf5 {[%clk 00:43:32]} {[%emt
00:03:31]} 24. Rhf1 {[%clk 00:29:07]} {[%emt 00:03:28]} Rg4 {[%clk 00:43:51]}
{[%emt 00:00:12]} 25. Rf3 {[%clk 00:23:42]} {[%emt 00:05:55]} Qf6 {[%clk
00:43:30]} {[%emt 00:00:51]} 26. Re1 {[%clk 00:21:45]} {[%emt 00:02:26]} Kg7
{[%clk 00:43:03]} {[%emt 00:00:57]} 27. Kg1 {[%clk 00:19:47]} {[%emt 00:02:27]}
Qd4+ {[%clk 00:40:48]} {[%emt 00:02:45]} 28. Qf2 {[%clk 00:19:33]} {[%emt
00:00:44]} Qf6 {[%clk 00:35:50]} {[%emt 00:05:29]} 29. Re8 {[%clk 00:18:03]}
{[%emt 00:01:59]} Qa1+ {[%clk 00:34:22]} {[%emt 00:01:59]} 30. Kh2 {[%clk
00:17:59]} {[%emt 00:00:33]} Qf6 {[%clk 00:34:16]} {[%emt 00:00:37]} 31. Rf4
{[%clk 00:17:53]} {[%emt 00:00:36]} Rxf4 {[%clk 00:32:00]} {[%emt 00:02:47]} 32.
Qxf4 {[%clk 00:18:12]} {[%emt 00:00:10]} g5 {[%clk 00:31:04]} {[%emt 00:01:26]}
33. Qf2 {[%clk 00:13:50]} {[%emt 00:04:51]} h4 {[%clk 00:31:04]} {[%emt
00:00:31]} 34. g4 {[%clk 00:13:34]} {[%emt 00:00:46]} hxg3+ {[%clk 00:26:58]}
{[%emt 00:04:37]} 35. Kxg3 {[%clk 00:13:57]} {[%emt 00:00:07]} a6 {[%clk
00:27:13]} {[%emt 00:00:15]} 36. a4 {[%clk 00:13:09]} {[%emt 00:01:18]} a5
{[%clk 00:27:25]} {[%emt 00:00:18]} 37. Kg2 {[%clk 00:07:10]} {[%emt 00:06:28]}
Bh7 {[%clk 00:24:14]} {[%emt 00:03:41]} 38. Qe3 {[%clk 00:04:05]} {[%emt
00:03:34]} Qf5 {[%clk 00:22:14]} {[%emt 00:02:32]} 39. Rb8 {[%clk 00:02:35]}
{[%emt 00:02:00]} Qxd3 {[%clk 00:20:39]} {[%emt 00:02:05]} 40. Qxg5+ {[%clk
00:01:39]} {[%emt 00:01:25]} Bg6 {[%clk 00:20:42]} {[%emt 00:00:28]} 41. Qg4
{[%clk 00:23:47]} {[%emt 00:08:22]} Qd2+ {[%clk 00:50:03]} {[%emt 00:01:09]} 42.
Kf1 {[%clk 00:22:53]} {[%emt 00:01:24]} Qc1+ {[%clk 00:50:14]} {[%emt
00:00:19]} 43. Kf2 {[%clk 00:23:09]} {[%emt 00:00:13]} Qd2+ {[%clk 00:49:49]}
{[%emt 00:00:56]} 44. Kf1 {[%clk 00:21:19]} {[%emt 00:02:19]} Qc1+ {[%clk
00:49:20]} {[%emt 00:01:00]} 45. Ke2 {[%clk 00:19:43]} {[%emt 00:02:05]} Qc2+
{[%clk 00:49:42]} {[%emt 00:00:08]} 1/2-1/2

[Event "SS Manhem Chess Week 2019 GM and IM tournaments"]
[Site "Molnlycke kulturhus, Biblioteksgatan 2, Molnlycke, Sweden"]
[Date "2019.08.15"]
[Round "8.2"]
[White "Haubro, Martin"]
[Black "Blomqvist, Erik"]
[Result "1/2-1/2"]
[TimeControl "90 minutes for 40 moves + 30 minutes for the rest of the game + 30 seconds per move from move one."]
[WhiteTitle "IM"]
[BlackTitle "GM"]
[WhiteFideId "1414291"]
[BlackFideId "1709437"]
[WhiteElo "2374"]
[BlackElo "2507"]

1. e4 {[%clk 01:30:58]} {[%emt 00:00:02]} c5 {[%clk 01:30:54]} {[%emt
00:00:06]} 2. Nf3 {[%clk 01:31:24]} {[%emt 00:00:04]} e6 {[%clk 01:31:15]}
{[%emt 00:00:08]} 3. d4 {[%clk 01:31:52]} {[%emt 00:00:03]} cxd4 {[%clk
01:31:37]} {[%emt 00:00:08]} 4. Nxd4 {[%clk 01:32:19]} {[%emt 00:00:03]} a6
{[%clk 01:31:42]} {[%emt 00:00:25]} 5. Bd3 {[%clk 01:32:38]} {[%emt 00:00:10]}
Bc5 {[%clk 01:31:55]} {[%emt 00:00:18]} 6. Nb3 {[%clk 01:33:04]} {[%emt
00:00:04]} Ba7 {[%clk 01:32:17]} {[%emt 00:00:07]} 7. O-O {[%clk 01:28:41]}
{[%emt 00:04:54]} Nc6 {[%clk 01:32:26]} {[%emt 00:00:21]} 8. c4 {[%clk
01:19:53]} {[%emt 00:09:18]} Nf6 {[%clk 01:29:58]} {[%emt 00:02:57]} 9. Nc3
{[%clk 01:20:15]} {[%emt 00:00:08]} d6 {[%clk 01:30:18]} {[%emt 00:00:10]} 10.
Re1 {[%clk 01:12:48]} {[%emt 00:07:57]} O-O {[%clk 01:24:00]} {[%emt 00:06:47]}
11. Be3 {[%clk 01:13:04]} {[%emt 00:00:14]} e5 {[%clk 01:23:50]} {[%emt
00:00:41]} 12. Bxa7 {[%clk 01:06:19]} {[%emt 00:07:16]} Rxa7 {[%clk 01:23:58]}
{[%emt 00:00:21]} 13. Qd2 {[%clk 01:05:29]} {[%emt 00:01:19]} Be6 {[%clk
01:20:35]} {[%emt 00:03:54]} 14. Be2 {[%clk 01:00:20]} {[%emt 00:05:40]} Qb8
{[%clk 01:15:53]} {[%emt 00:05:12]} 15. Rac1 {[%clk 00:58:31]} {[%emt
00:02:19]} Rd8 {[%clk 01:10:23]} {[%emt 00:06:00]} 16. Red1 {[%clk 00:50:27]}
{[%emt 00:08:35]} b6 {[%clk 01:09:37]} {[%emt 00:01:15]} 17. h3 {[%clk
00:50:33]} {[%emt 00:00:25]} h6 {[%clk 01:08:12]} {[%emt 00:01:56]} 18. Kh2
{[%clk 00:50:24]} {[%emt 00:00:39]} b5 {[%clk 00:52:14]} {[%emt 00:16:28]} 19.
cxb5 {[%clk 00:17:47]} {[%emt 00:33:06]} axb5 {[%clk 00:52:31]} {[%emt
00:00:14]} 20. Nxb5 {[%clk 00:17:23]} {[%emt 00:00:54]} Rxa2 {[%clk 00:52:37]}
{[%emt 00:00:24]} 21. Rxc6 {[%clk 00:14:27]} {[%emt 00:03:26]} Bxb3 {[%clk
00:52:51]} {[%emt 00:00:15]} 22. Rdc1 {[%clk 00:12:32]} {[%emt 00:02:24]} Be6
{[%clk 00:33:23]} {[%emt 00:19:58]} 23. Qe3 {[%clk 00:06:04]} {[%emt 00:06:59]}
Rxb2 {[%clk 00:24:39]} {[%emt 00:09:14]} 24. Rb6 {[%clk 00:05:51]} {[%emt
00:00:43]} Qa8 {[%clk 00:24:38]} {[%emt 00:00:29]} 25. Nxd6 {[%clk 00:06:06]}
{[%emt 00:00:16]} Qa2 {[%clk 00:16:26]} {[%emt 00:08:42]} 26. Bc4 {[%clk
00:04:48]} {[%emt 00:01:48]} Bxc4 {[%clk 00:16:07]} {[%emt 00:00:49]} 27. Rxb2
{[%clk 00:05:14]} {[%emt 00:00:04]} Qxb2 {[%clk 00:16:33]} {[%emt 00:00:05]} 28.
Nxc4 {[%clk 00:05:39]} {[%emt 00:00:05]} Qb8 {[%clk 00:14:29]} {[%emt
00:02:34]} 29. Na5 {[%clk 00:04:02]} {[%emt 00:02:07]} Qb2 {[%clk 00:10:55]}
{[%emt 00:04:03]} 30. Nc4 {[%clk 00:04:25]} {[%emt 00:00:07]} Qb5 {[%clk
00:10:47]} {[%emt 00:00:37]} 31. Qg3 {[%clk 00:02:21]} {[%emt 00:02:36]} Nxe4
{[%clk 00:10:11]} {[%emt 00:01:05]} 32. Qxe5 {[%clk 00:02:42]} {[%emt
00:00:09]} Qxe5+ {[%clk 00:10:35]} {[%emt 00:00:06]} 33. Nxe5 {[%clk 00:03:06]}
{[%emt 00:00:06]} Nxf2 {[%clk 00:10:37]} {[%emt 00:00:28]} 34. Nxf7 {[%clk
00:03:08]} {[%emt 00:00:28]} Kxf7 {[%clk 00:10:30]} {[%emt 00:00:38]} 35. Rf1
{[%clk 00:03:33]} {[%emt 00:00:05]} Rd2 {[%clk 00:10:19]} {[%emt 00:00:41]} 36.
Kg3 {[%clk 00:03:56]} {[%emt 00:00:07]} 1/2-1/2